bitfinex/quotes_BTCUSD_20240613
["timestamp","ask_amount","ask_price","bid_price","bid_amount"]
[1718299747652,0.01931698,66735.0,66734.0,0.00885]
[1718299748097,0.16481698,66735.0,66734.0,0.00885]
[1718299748354,0.32466298,66735.0,66734.0,0.00085]
[1718299748562,0.76867491,66735.0,66734.0,0.00085]
[1718299748766,0.76867491,66735.0,66734.0,0.00985]
[1718299749178,0.76867491,66735.0,66734.0,0.00085]
[1718299749391,0.46898291,66735.0,66734.0,0.00085]
[1718299752436,0.45898291,66735.0,66734.0,0.00085]
[1718299752666,0.01931698,66737.0,66734.0,0.00085]
[1718299752818,0.01931698,66735.0,66734.0,0.00085]
[1718299759542,0.07971698,66735.0,66734.0,0.00085]
[1718299761142,0.52925498,66735.0,66734.0,0.00085]
[1718299761346,0.61455498,66735.0,66734.0,0.00085]
[1718299762511,0.75887491,66735.0,66734.0,0.00085]
[1718299762721,1.05856691,66735.0,66734.0,0.00085]
[1718299763125,0.75887491,66735.0,66734.0,0.00085]
[1718299764228,0.75887491,66735.0,66734.0,0.00185]
[1718299764397,1.05856691,66735.0,66734.0,0.00185]
[1718299764597,1.06456691,66735.0,66734.0,0.00285]
[1718299768865,1.06550192,66735.0,66734.0,0.00285]
[1718299769510,0.76580992,66735.0,66734.0,0.00285]
[1718299776556,1.08106017,66735.0,66734.0,0.00285]
[1718299776997,1.15226017,66735.0,66734.0,0.00285]
[1718299777199,0.95256817,66735.0,66734.0,0.00285]
[1718299777414,1.25226017,66735.0,66734.0,0.00285]
[1718299777711,1.78669278,66735.0,66734.0,0.00285]
[1718299778279,1.83469891,66735.0,66734.0,0.00285]
[1718299778480,1.78069278,66735.0,66734.0,0.00185]
[1718299778693,1.82869852,66735.0,66734.0,0.00185]
[1718299778906,1.78669278,66735.0,66734.0,0.00285]
[1718299779099,1.89349278,66735.0,66734.0,0.00285]
[1718299779303,0.01931698,66710.0,66709.0,0.4728]
[1718299779505,0.01931698,66706.0,66701.0,0.09051]
[1718299779708,0.01931698,66706.0,66704.0,0.149913]
[1718299779915,0.01931698,66710.0,66709.0,0.149904]
[1718299780259,0.0762,66720.0,66706.0,0.0852]
[1718299780260,0.01931698,66707.0,66706.0,0.0852]
[1718299781891,0.01931698,66704.0,66703.0,0.059954]
[1718299782085,0.01931698,66703.0,66702.0,0.0852]
[1718299782727,0.01931698,66704.0,66702.0,0.0852]
[1718299783284,0.02031698,66704.0,66703.0,0.001]
[1718299783844,0.001,66704.0,66703.0,0.001]
[1718299784230,0.002,66704.0,66703.0,0.236118]
[1718299784360,0.002,66704.0,66703.0,0.29830382]
[1718299784786,0.001,66704.0,66703.0,0.29730382]
[1718299785014,0.001,66704.0,66703.0,0.235118]
[1718299785618,0.001,66704.0,66703.0,0.29730463]
[1718299785822,0.001,66704.0,66703.0,0.59714063]
[1718299786031,0.001,66704.0,66703.0,0.59713966]
[1718299786248,0.01931698,66714.0,66713.0,0.149895]
[1718299786448,0.01931698,66714.0,66713.0,0.235095]
[1718299787927,0.02331698,66714.0,66713.0,0.0852]
[1718299788136,0.01931698,66711.0,66708.0,0.0324]
[1718299788345,0.004,66714.0,66708.0,0.0324]
[1718299788346,0.01931698,66709.0,66708.0,0.0324]
[1718299788554,0.01931698,66708.0,66707.0,0.0528]
[1718299788736,0.004,66714.0,66705.0,0.0324]
[1718299788737,0.01931698,66706.0,66705.0,0.0324]
[1718299789181,0.01931698,66702.0,66701.0,0.02466719]
[1718299789646,0.014,66714.0,66701.0,0.08685452]
[1718299789647,0.01931698,66704.0,66701.0,0.08685452]
[1718299789882,0.01931698,66704.0,66702.0,0.06218733]
[1718299790521,0.01931698,66704.0,66701.0,0.02466719]
[1718299790728,0.02031698,66702.0,66701.0,0.03566719]
[1718299790942,0.02031698,66702.0,66701.0,0.09785465]
[1718299791183,0.001,66702.0,66701.0,0.09785465]
[1718299791904,0.02031698,66702.0,66701.0,0.09785465]
[1718299792104,0.01931698,66702.0,66701.0,0.08685465]
[1718299792762,0.02031698,66704.0,66701.0,0.06929746]
[1718299792963,0.01931698,66705.0,66701.0,0.00711]
[1718299793185,0.01931698,66706.0,66701.0,0.00711]
[1718299793409,0.01931698,66705.0,66702.0,0.0621874]
[1718299793628,0.01931698,66707.0,66702.0,0.0621874]
[1718299794111,0.01931698,66706.0,66702.0,0.0621874]
[1718299794525,0.01931698,66705.0,66702.0,0.0621874]
[1718299795192,0.01931698,66705.0,66702.0,0.0721874]
[1718299795400,0.01931698,66703.0,66702.0,0.01]
[1718299795609,0.01931698,66703.0,66701.0,0.17551759]
[1718299796050,0.01931698,66702.0,66701.0,0.17551759]
[1718299796254,0.01931698,66706.0,66701.0,0.17551759]
[1718299796471,0.1499,66711.0,66701.0,0.17551759]
[1718299796472,0.001,66704.0,66701.0,0.18651759]
[1718299796888,0.01931698,66705.0,66701.0,0.17551759]
[1718299797091,0.02031698,66705.0,66702.0,0.01]
[1718299797310,0.001,66703.0,66702.0,0.01]
[1718299797526,0.01931698,66705.0,66701.0,0.17551759]
[1718299797954,0.002,66704.0,66701.0,0.19751759]
[1718299798376,0.001,66704.0,66701.0,0.18651759]
[1718299798827,0.001,66704.0,66701.0,0.19751759]
[1718299799263,0.001,66705.0,66701.0,0.18651759]
[1718299799650,0.001,66703.0,66702.0,0.01]
[1718299800066,0.001,66705.0,66701.0,0.18651759]
[1718299800294,0.00071339,66705.0,66701.0,0.19751759]
[1718299800496,0.00071339,66705.0,66703.0,0.149918]
[1718299800497,0.001,66704.0,66703.0,0.149918]
[1718299800728,0.01931698,66710.0,66703.0,0.149918]
[1718299801177,0.001,66704.0,66701.0,0.03659559]
[1718299801391,0.01931698,66702.0,66701.0,0.01811]
[1718299801808,0.01931698,66707.0,66701.0,0.00711]
[1718299801809,0.001,66703.0,66702.0,0.01]
[1718299802015,0.001,66703.0,66702.0,0.60408093]
[1718299802241,0.001,66703.0,66702.0,1.21485109]
[1718299802451,0.001,66703.0,66702.0,1.85587609]
[1718299802655,0.001,66703.0,66702.0,1.94107609]
[1718299803073,0.001,66703.0,66702.0,2.01227609]
[1718299803289,0.14335996,66726.0,66710.0,0.299801]
[1718299803290,0.01931698,66720.0,66710.0,0.299801]
[1718299803512,0.01931698,66719.0,66715.0,0.149891]
[1718299803772,0.01931698,66720.0,66714.0,0.0712]
[1718299803993,0.0621,66729.0,66715.0,0.52930093]
[1718299804236,0.0769,66731.0,66727.0,0.149863]
[1718299804237,0.01931698,66728.0,66727.0,0.149863]
[1718299804659,0.01931698,66730.0,66726.0,0.0712]
[1718299804880,0.01931698,66724.0,66720.0,0.0852]
[1718299805081,0.01931698,66726.0,66720.0,0.0852]
[1718299805508,0.01931698,66726.0,66721.0,0.06217]
[1718299806140,0.15078301,66734.0,66721.0,0.06217]
[1718299806141,0.01931698,66722.0,66721.0,0.06217]
[1718299806360,0.01931698,66717.0,66714.0,0.001]
[1718299806567,0.01931698,66722.0,66719.0,0.14988]
[1718299806779,0.149856,66731.0,66722.0,0.149875]
[1718299806780,0.01931698,66723.0,66722.0,0.149875]
[1718299807386,0.001,66726.0,66722.0,0.0324]
[1718299807624,0.01931698,66726.0,66722.0,0.0324]
[1718299808276,0.01931698,66726.0,66722.0,0.183275]
[1718299808687,0.01931698,66726.0,66722.0,0.184275]
[1718299808906,0.16331698,66731.0,66722.0,0.0344]
[1718299809130,0.00093501,66734.0,66728.0,0.149862]
[1718299809395,0.00093501,66734.0,66733.0,0.14985]
[1718299809860,0.02025199,66734.0,66729.0,0.0528]
[1718299810099,0.01931698,66726.0,66722.0,0.004]
[1718299810339,0.01931698,66723.0,66722.0,0.002]
[1718299810797,0.01931698,66722.0,66715.0,0.09757943]
[1718299811016,0.01931698,66721.0,66713.0,0.0448097]
[1718299811240,0.01931698,66717.0,66714.0,0.31085489]
[1718299811475,0.01931698,66718.0,66713.0,0.20709142]
[1718299811694,0.01931698,66720.0,66714.0,0.1]
[1718299811916,0.0621,66728.0,66714.0,0.1]
[1718299811917,0.01931698,66718.0,66714.0,0.1]
[1718299812349,0.01931698,66718.0,66714.0,0.249892]
[1718299812572,0.01931698,66725.0,66714.0,0.249892]
[1718299812825,0.01931698,66724.0,66718.0,0.149883]
[1718299813036,0.01931698,66721.0,66718.0,0.149883]
[1718299813465,0.01931698,66724.0,66718.0,0.149883]
[1718299813681,0.01931698,66726.0,66722.0,0.149873]
[1718299813903,0.01931698,66723.0,66714.0,0.1]
[1718299814132,0.01931698,66723.0,66719.0,0.149882]
[1718299814342,0.01931698,66724.0,66719.0,0.149882]
[1718299814580,0.01931698,66726.0,66719.0,0.149882]
[1718299814797,0.001,66720.0,66719.0,0.149882]
[1718299815236,0.01931698,66725.0,66719.0,0.149882]
[1718299815453,0.001,66723.0,66719.0,0.155882]
[1718299815662,0.001,66723.0,66722.0,0.149875]
[1718299815883,0.01931698,66725.0,66722.0,0.149875]
[1718299816108,0.01931698,66726.0,66722.0,0.149875]
[1718299816329,0.01931698,66725.0,66722.0,0.149875]
[1718299816528,0.01931698,66724.0,66722.0,0.149875]
[1718299816769,0.01931698,66724.0,66723.0,0.149873]
[1718299817234,0.01931698,66720.0,66719.0,0.005]
[1718299817458,0.01931698,66721.0,66719.0,0.005]
[1718299817902,0.01931698,66720.0,66719.0,0.01]
[1718299818557,0.01931698,66724.0,66719.0,0.005]
[1718299818793,0.01931698,66722.0,66719.0,0.005]
[1718299819479,0.08141698,66728.0,66714.0,0.1]
[1718299819692,0.0621,66728.0,66726.0,0.149864]
[1718299820164,0.01931698,66730.0,66729.0,0.149859]
[1718299820425,0.14023501,66734.0,66733.0,0.14985]
[1718299820426,0.02025199,66734.0,66733.0,0.14985]
[1718299820644,0.00093501,66734.0,66733.0,0.14985]
[1718299821099,0.00093501,66734.0,66733.0,0.449551]
[1718299821239,0.00093501,66734.0,66733.0,0.481951]
[1718299821913,0.00093501,66734.0,66733.0,0.18225]
[1718299822120,0.00193501,66734.0,66733.0,0.18225]
[1718299823524,0.00093501,66734.0,66733.0,0.18225]
[1718299823732,0.00093501,66734.0,66733.0,0.19625]
[1718299824356,0.00093501,66734.0,66733.0,0.19525]
[1718299824567,0.00093501,66734.0,66733.0,0.494951]
[1718299824803,0.00093501,66734.0,66733.0,0.64027093]
[1718299825149,0.00093501,66734.0,66733.0,0.81097093]
[1718299825309,0.00093501,66734.0,66733.0,0.79697093]
[1718299825503,0.00093501,66734.0,66733.0,0.78397093]
[1718299826681,0.00093501,66734.0,66733.0,0.79797093]
[1718299827348,0.00093501,66734.0,66733.0,0.49826993]
[1718299827931,0.00093501,66734.0,66733.0,0.51226993]
[1718299828131,0.00093501,66734.0,66733.0,0.49826993]
[1718299828401,0.00093501,66734.0,66733.0,0.48426993]
[1718299828557,0.00093501,66734.0,66733.0,0.49826993]
[1718299828963,0.00093501,66734.0,66733.0,0.51226993]
[1718299829789,0.00093501,66734.0,66733.0,0.49826993]
[1718299829996,0.00093501,66734.0,66733.0,0.79797093]
[1718299830223,0.00093501,66734.0,66733.0,1.00750693]
[1718299830442,0.00093501,66734.0,66733.0,1.30426155]
[1718299830945,0.00093501,66734.0,66733.0,1.85971255]
[1718299831157,0.00093501,66734.0,66733.0,0.99177455]
[1718299831566,0.00093501,66734.0,66733.0,1.01570755]
[1718299832011,0.02025199,66734.0,66733.0,0.037933]
[1718299832238,0.02025199,66734.0,66733.0,0.023933]
[1718299832443,0.38335995,66734.0,66733.0,0.023933]
[1718299832651,0.39335995,66734.0,66733.0,0.009933]
[1718299832844,0.38335995,66734.0,66733.0,0.009933]
[1718299833056,0.39335995,66734.0,66733.0,0.009933]
[1718299833288,0.53767988,66734.0,66733.0,0.009933]
[1718299833749,0.53767988,66734.0,66733.0,0.023933]
[1718299833985,0.83737688,66734.0,66733.0,0.023933]
[1718299834206,0.83737688,66734.0,66733.0,0.037933]
[1718299834626,0.83737688,66734.0,66733.0,0.009933]
[1718299834910,0.08531698,66718.0,66717.0,0.4728]
[1718299835121,0.16251698,66718.0,66717.0,0.4728]
[1718299835559,0.16251698,66718.0,66717.0,0.5728]
[1718299836415,0.1432,66718.0,66717.0,0.5728]
[1718299837050,0.01931698,66721.0,66717.0,0.5728]
[1718299837265,0.01931698,66721.0,66718.0,0.1]
[1718299837945,0.15631698,66722.0,66718.0,0.1]
[1718299838148,0.01931698,66722.0,66718.0,0.1]
[1718299838353,0.01931698,66722.0,66717.0,0.016]
[1718299838571,0.01931698,66721.0,66717.0,0.016]
[1718299838828,0.01931698,66722.0,66717.0,0.008]
[1718299839035,0.01931698,66722.0,66715.0,0.01769745]
[1718299839211,0.01931698,66722.0,66717.0,0.149886]
[1718299839447,0.01931698,66721.0,66718.0,0.106]
[1718299839647,0.01931698,66719.0,66718.0,0.23134135]
[1718299840335,0.01931698,66719.0,66718.0,0.13134135]
[1718299840543,0.25200098,66718.0,66717.0,0.007]
[1718299840749,0.62396998,66718.0,66717.0,0.007]
[1718299840974,0.62396998,66718.0,66717.0,0.015]
[1718299841431,0.76828991,66718.0,66717.0,0.007]
[1718299842263,0.46852091,66718.0,66717.0,0.007]
[1718299842527,0.46852091,66718.0,66706.0,0.4728]
[1718299842528,0.16431698,66718.0,66710.0,0.149902]
[1718299842744,0.01931698,66711.0,66710.0,0.149902]
[1718299843191,0.01931698,66710.0,66709.0,0.149904]
[1718299844465,0.01931698,66707.0,66706.0,0.4728]
[1718299844701,0.01931698,66707.0,66706.0,0.27427397]
[1718299845156,0.01931698,66707.0,66706.0,0.149911]
[1718299845367,0.01931698,66707.0,66706.0,0.27427297]
[1718299845579,0.01931698,66706.0,66705.0,0.00086]
[1718299846733,0.01931698,66707.0,66705.0,0.00086]
[1718299846948,0.01931698,66707.0,66705.0,0.01086]
[1718299847150,0.01931698,66707.0,66706.0,0.009]
[1718299847370,0.31652598,66707.0,66706.0,0.009]
[1718299847596,0.31652598,66707.0,66705.0,0.00086]
[1718299847597,0.16922798,66706.0,66705.0,0.00086]
[1718299848035,0.16922798,66706.0,66705.0,0.01086]
[1718299848481,0.16922798,66706.0,66705.0,0.00086]
[1718299848891,0.16894679,66706.0,66705.0,0.01086]
[1718299849316,0.16894679,66706.0,66705.0,0.00086]
[1718299849535,0.16994679,66706.0,66705.0,0.00086]
[1718299850472,0.16994679,66706.0,66705.0,0.00486]
[1718299850887,0.17994679,66706.0,66705.0,0.00486]
[1718299851101,0.17994679,66706.0,66705.0,0.00086]
[1718299851525,0.55926979,66706.0,66705.0,0.00086]
[1718299851760,0.62166979,66706.0,66705.0,0.00086]
[1718299852198,1.06581272,66706.0,66705.0,0.00086]
[1718299853112,1.06481272,66706.0,66705.0,0.00086]
[1718299853321,1.06781272,66706.0,66705.0,0.00086]
[1718299853762,1.06781272,66706.0,66701.0,0.00711]
[1718299853763,0.62299679,66702.0,66701.0,0.00711]
[1718299853981,0.76731672,66702.0,66701.0,0.00711]
[1718299854201,1.06715772,66702.0,66701.0,0.00711]
[1718299854434,0.76731672,66702.0,66701.0,0.00711]
[1718299854992,1.16715772,66702.0,66701.0,0.00711]
[1718299855415,1.06815772,66702.0,66701.0,0.00811]
[1718299855980,0.76831672,66702.0,66701.0,0.00811]
[1718299856894,0.76731672,66702.0,66701.0,0.00711]
[1718299857114,0.45747572,66702.0,66701.0,0.00711]
[1718299857326,0.31855572,66702.0,66701.0,0.00811]
[1718299857524,0.47547572,66702.0,66701.0,0.00911]
[1718299858071,0.44543993,66702.0,66701.0,0.00811]
[1718299858317,0.43843993,66702.0,66701.0,0.00711]
[1718299858515,0.46847572,66702.0,66701.0,0.00811]
[1718299858924,1.06815772,66702.0,66701.0,0.00811]
[1718299859127,1.36799872,66702.0,66701.0,0.00811]
[1718299859304,1.46799872,66702.0,66701.0,0.00811]
[1718299859902,0.72031079,66700.0,66699.0,0.00856]
[1718299860102,1.16448072,66700.0,66699.0,0.00856]
[1718299860310,1.66448072,66700.0,66699.0,0.00856]
[1718299860481,1.56448072,66700.0,66699.0,0.00856]
[1718299860959,1.66448072,66700.0,66699.0,0.00856]
[1718299861369,1.26563072,66700.0,66699.0,0.00956]
[1718299861784,1.67048072,66700.0,66699.0,0.00956]
[1718299862006,1.66448072,66700.0,66699.0,0.00856]
[1718299863365,1.66448072,66700.0,66680.0,0.01]
[1718299863366,0.02903579,66681.0,66680.0,0.01]
[1718299863567,0.02903579,66681.0,66676.0,0.00856]
[1718299863568,0.16901179,66677.0,66676.0,0.00856]
[1718299863773,0.01903579,66677.0,66676.0,0.00856]
[1718299864104,0.16901179,66677.0,66676.0,0.00856]
[1718299864265,0.32333172,66677.0,66676.0,0.00856]
[1718299865849,0.31333172,66677.0,66676.0,0.00856]
[1718299866258,0.32333172,66677.0,66676.0,0.00856]
[1718299866634,0.33433172,66677.0,66676.0,0.00956]
[1718299866844,1.25823772,66677.0,66676.0,0.00956]
[1718299867074,1.34723772,66677.0,66676.0,0.00856]
[1718299867281,1.39755765,66677.0,66676.0,0.00956]
[1718299867456,1.25723772,66677.0,66676.0,0.00956]
[1718299867873,0.95728472,66677.0,66676.0,0.00956]
[1718299868075,0.65333172,66677.0,66676.0,0.00956]
[1718299868313,0.46943172,66677.0,66676.0,0.00856]
[1718299868696,0.46943172,66677.0,66676.0,0.00956]
[1718299868697,1.09371186,66677.0,66676.0,0.00956]
[1718299869297,1.63798479,66677.0,66676.0,0.00956]
[1718299869472,1.77398479,66677.0,66676.0,0.005673]
[1718299869684,0.16993336,66673.0,66667.0,0.00855]
[1718299869896,1.18747168,66673.0,66667.0,0.00855]
[1718299870215,1.83741368,66673.0,66667.0,0.00855]
[1718299870389,0.57902679,66668.0,66667.0,0.00855]
[1718299870590,0.91444672,66668.0,66667.0,0.00855]
[1718299870790,0.91444672,66668.0,66666.0,0.2]
[1718299870791,1.22013279,66667.0,66666.0,0.2]
[1718299871016,1.54235272,66667.0,66666.0,0.2]
[1718299871257,0.82016579,66653.0,66652.0,0.00956]
[1718299871582,0.01903579,66646.0,66640.0,0.0595]
[1718299871787,0.96510172,66646.0,66638.0,0.00855]
[1718299872005,1.14300172,66646.0,66638.0,0.00855]
[1718299872839,0.95510172,66646.0,66638.0,0.00855]
[1718299873300,0.96510172,66646.0,66638.0,0.00855]
[1718299873721,0.97010172,66646.0,66638.0,0.00855]
[1718299874553,0.52903579,66646.0,66638.0,0.00855]
[1718299874770,0.68408179,66646.0,66638.0,0.00855]
[1718299874978,0.66908179,66646.0,66638.0,0.00855]
[1718299875183,0.68608179,66646.0,66638.0,0.00855]
[1718299875386,0.82040172,66646.0,66638.0,0.00855]
[1718299875835,0.83040172,66646.0,66638.0,0.00855]
[1718299876303,0.83440172,66646.0,66638.0,0.00855]
[1718299876519,0.16909579,66640.0,66638.0,0.00855]
[1718299876733,0.93983572,66640.0,66638.0,0.00855]
[1718299877154,0.62971572,66640.0,66638.0,0.00855]
[1718299877366,0.93983572,66640.0,66638.0,0.00855]
[1718299877782,0.63971572,66640.0,66638.0,0.00855]
[1718299878216,0.64471572,66640.0,66638.0,0.00855]
[1718299878664,0.65871572,66640.0,66639.0,0.00955]
[1718299879287,0.65371572,66640.0,66639.0,0.00955]
[1718299879713,0.66771572,66640.0,66639.0,0.00955]
[1718299879920,0.65771572,66640.0,66639.0,0.00955]
[1718299880123,0.95383572,66640.0,66639.0,0.00855]
[1718299880290,0.31575572,66640.0,66639.0,0.00855]
[1718299880544,0.17735572,66640.0,66639.0,0.00855]
[1718299880774,0.014,66640.0,66639.0,0.00855]
[1718299881015,0.014,66640.0,66639.0,0.00955]
[1718299881231,0.014,66640.0,66639.0,0.01455221]
[1718299881440,0.014,66640.0,66639.0,0.01139097]
[1718299881616,0.014,66640.0,66639.0,0.01551779]
[1718299881833,0.014,66640.0,66639.0,0.5569109]
[1718299881834,0.028,66640.0,66639.0,0.5569109]
[1718299882038,0.14431993,66673.0,66639.0,0.5569109]
[1718299882039,0.01903579,66668.0,66651.0,0.08]
[1718299882255,0.5,66678.0,66665.0,0.150003]
[1718299882467,0.5,66678.0,66659.0,0.1577]
[1718299882468,0.01903579,66677.0,66659.0,0.1577]
[1718299882681,0.01903579,66677.0,66665.0,0.00283373]
[1718299882682,0.01903579,66666.0,66665.0,0.00283373]
[1718299882895,0.01903579,66667.0,66656.0,0.4728]
[1718299883104,0.01903579,66670.0,66665.0,0.00283373]
[1718299883303,0.01903579,66670.0,66664.0,0.053]
[1718299883547,0.01903579,66671.0,66659.0,0.150015]
[1718299883767,0.01903579,66670.0,66659.0,0.150015]
[1718299883949,0.01903579,66666.0,66659.0,0.001]
[1718299884180,0.01903579,66670.0,66660.0,0.00283373]
[1718299884418,0.01903579,66670.0,66660.0,0.00409042]
[1718299884646,0.01903579,66674.0,66669.0,0.149994]
[1718299884887,0.01903579,66670.0,66669.0,0.149994]
[1718299885105,0.01903579,66674.0,66670.0,0.149992]
[1718299885327,0.01903579,66674.0,66660.0,0.14431993]
[1718299885328,0.01903579,66670.0,66669.0,0.00283373]
[1718299885540,0.01903579,66666.0,66660.0,0.14431993]
[1718299885775,0.01903579,66668.0,66665.0,0.008]
[1718299885985,0.01903579,66670.0,66665.0,0.008]
[1718299887256,0.001,66668.0,66666.0,0.00274934]
[1718299887682,0.01903579,66669.0,66666.0,0.00274934]
[1718299887902,0.01903579,66670.0,66666.0,0.00274934]
[1718299888114,0.02003579,66670.0,66665.0,0.009]
[1718299888319,0.02003579,66670.0,66667.0,0.00274934]
[1718299888660,0.02003579,66670.0,66665.0,0.009]
[1718299888865,0.01903579,66669.0,66668.0,0.00274934]
[1718299889069,0.01903579,66666.0,66665.0,0.009]
[1718299889476,0.149998,66668.0,66657.0,0.1]
[1718299889477,0.01903579,66659.0,66657.0,0.1]
[1718299889680,0.01903579,66663.0,66658.0,0.0026943]
[1718299889887,0.01903579,66666.0,66658.0,0.0026943]
[1718299890085,0.01903579,66663.0,66655.0,0.0845]
[1718299890304,0.01903579,66659.0,66656.0,0.0027012]
[1718299890516,0.0639,66672.0,66656.0,0.0027012]
[1718299890517,0.01903579,66663.0,66656.0,0.0027012]
[1718299890734,0.01903579,66659.0,66656.0,0.1027012]
[1718299890942,0.0639,66672.0,66656.0,0.1027012]
[1718299890943,0.01903579,66663.0,66656.0,0.1027012]
[1718299891205,0.01903579,66663.0,66658.0,0.028]
[1718299891613,0.01903579,66663.0,66659.0,0.00270233]
[1718299891818,0.00993336,66666.0,66659.0,0.00270233]
[1718299892044,0.01903579,66667.0,66659.0,0.00270233]
[1718299892862,0.01903579,66663.0,66659.0,0.00270233]
[1718299893070,0.01903579,66660.0,66659.0,0.00270233]
[1718299893922,0.01985529,66659.0,66656.0,0.014]
[1718299894532,0.01985529,66659.0,66655.0,0.053]
[1718299894533,0.01885529,66659.0,66655.0,0.053]
[1718299896037,0.01885529,66659.0,66653.0,0.250028]
[1718299896281,0.01885529,66659.0,66653.0,0.1]
[1718299896490,0.01985529,66659.0,66656.0,0.014]
[1718299896902,0.02085529,66659.0,66656.0,0.014]
[1718299897103,0.01885529,66659.0,66652.0,0.1]
[1718299897220,0.001,66659.0,66653.0,0.014]
[1718299897427,0.02085529,66659.0,66653.0,0.028]
[1718299897919,0.01885529,66659.0,66652.0,0.250031]
[1718299898359,0.01885529,66660.0,66655.0,0.150026]
[1718299898572,0.01885529,66666.0,66658.0,0.150018]
[1718299898793,0.001,66659.0,66658.0,0.150018]
[1718299899712,0.001,66659.0,66656.0,0.014]
[1718299899920,0.002,66659.0,66656.0,0.178023]
[1718299900176,0.01885529,66657.0,66656.0,0.028]
[1718299900404,0.08345529,66657.0,66656.0,0.014]
[1718299900859,0.01885529,66651.0,66647.0,0.1]
[1718299901065,0.0646,66657.0,66647.0,0.250042]
[1718299901280,0.01885529,66656.0,66655.0,0.014]
[1718299901715,0.214621,66657.0,66647.0,0.1]
[1718299901716,0.01885529,66652.0,66647.0,0.1]
[1718299901942,0.01885529,66652.0,66646.0,0.4728]
[1718299902151,0.16889929,66647.0,66646.0,0.4728]
[1718299903210,0.01885529,66647.0,66646.0,0.4728]
[1718299903672,0.01885529,66649.0,66646.0,0.4728]
[1718299903878,0.002,66647.0,66646.0,0.4728]
[1718299904119,0.02085529,66647.0,66646.0,0.4728]
[1718299904745,0.01885529,66647.0,66639.0,0.00855]
[1718299905582,0.01885529,66645.0,66639.0,0.00855]
[1718299906034,0.01885529,66647.0,66634.0,0.4728]
[1718299906245,0.01885529,66655.0,66640.0,0.21647989]
[1718299906494,0.01,66666.0,66640.0,0.21647989]
[1718299906495,0.002,66647.0,66641.0,0.30275521]
[1718299906714,0.002,66647.0,66646.0,0.150046]
[1718299906932,0.01885529,66656.0,66655.0,0.150026]
[1718299907154,0.01885529,66656.0,66646.0,0.150046]
[1718299907371,0.01885529,66652.0,66643.0,0.4728]
[1718299907580,0.01885529,66652.0,66646.0,0.150045]
[1718299907796,0.01885529,66659.0,66647.0,0.00459447]
[1718299908008,0.01885529,66656.0,66646.0,0.005]
[1718299908215,0.01885529,66656.0,66651.0,0.150034]
[1718299908387,0.01885529,66656.0,66647.0,0.150042]
[1718299908589,0.01885529,66655.0,66652.0,0.00279363]
[1718299908797,0.01885529,66655.0,66646.0,0.005]
[1718299909004,0.01885529,66654.0,66653.0,0.00279363]
[1718299909243,0.01885529,66654.0,66646.0,0.005]
[1718299909244,0.01885529,66647.0,66646.0,0.005]
[1718299909456,0.08135529,66647.0,66646.0,0.005]
[1718299909684,0.23139929,66647.0,66646.0,0.00278]
[1718299909854,0.01885529,66645.0,66635.0,0.12995]
[1718299910151,0.01885529,66645.0,66643.0,0.008]
[1718299910378,0.01885529,66647.0,66643.0,0.008]
[1718299910726,0.01985529,66652.0,66644.0,0.00279776]
[1718299910945,0.01885529,66656.0,66645.0,0.300094]
[1718299911161,0.01885529,66659.0,66652.0,0.150032]
[1718299911376,0.0787,66660.0,66650.0,0.150037]
[1718299911554,0.001,66655.0,66654.0,0.150028]
[1718299911969,0.0616,66662.0,66651.0,0.14711769]
[1718299911970,0.01885529,66659.0,66651.0,0.14431993]
[1718299912129,0.01885529,66657.0,66654.0,0.00279776]
[1718299912309,0.01885529,66657.0,66651.0,0.14431993]
[1718299912310,0.001,66656.0,66651.0,0.14431993]
[1718299912512,0.001,66656.0,66652.0,0.00279776]
[1718299912973,0.01885529,66657.0,66650.0,0.150037]
[1718299913120,0.01885529,66657.0,66653.0,0.00279776]
[1718299913318,0.01885529,66657.0,66650.0,0.150037]
[1718299913561,0.01885529,66657.0,66651.0,0.00279776]
[1718299914170,0.02185529,66656.0,66651.0,0.00279776]
[1718299914365,0.150022,66657.0,66651.0,0.00279776]
[1718299914616,0.01885529,66655.0,66645.0,0.1]
[1718299914766,0.01885529,66655.0,66652.0,0.00279776]
[1718299914950,0.01885529,66655.0,66645.0,0.24431993]
[1718299915305,0.01885529,66654.0,66653.0,0.00279776]
[1718299915506,0.001,66656.0,66645.0,0.24431993]
[1718299915507,0.01885529,66652.0,66645.0,0.24431993]
[1718299915808,0.01885529,66651.0,66646.0,0.0027746]
[1718299916217,0.01885529,66649.0,66646.0,0.0027746]
[1718299916418,0.01885529,66647.0,66646.0,0.0027746]
[1718299916620,0.01885529,66646.0,66638.0,0.08]
[1718299916828,0.01885529,66645.0,66639.0,0.4555239]
[1718299916988,0.01885529,66645.0,66640.0,0.1]
[1718299917185,0.01885529,66645.0,66640.0,0.10275986]
[1718299917410,0.01885529,66643.0,66640.0,0.25281886]
[1718299917814,0.001,66646.0,66640.0,0.10275986]
[1718299917989,0.001,66646.0,66642.0,0.150053]
[1718299918193,0.0601,66650.0,66645.0,0.007]
[1718299918595,0.0601,66650.0,66646.0,0.00276902]
[1718299918989,0.16890329,66645.0,66643.0,0.1]
[1718299919195,0.01885529,66642.0,66640.0,0.025]
[1718299919616,0.300063,66653.0,66640.0,0.022]
[1718299919823,0.300063,66653.0,66640.0,0.012]
[1718299920165,0.011,66650.0,66646.0,0.006]
[1718299920399,0.001,66650.0,66646.0,0.006]
[1718299920741,0.15004,66649.0,66646.0,0.006]
[1718299920947,0.150043,66648.0,66646.0,0.006]
[1718299921725,0.150043,66648.0,66640.0,0.01]
[1718299921935,0.150043,66648.0,66646.0,0.004]
[1718299922751,0.1414,66647.0,66646.0,0.004]
[1718299922879,0.1414,66647.0,66646.0,0.01]
[1718299923082,0.001,66648.0,66646.0,0.02]
[1718299923283,0.001,66648.0,66647.0,0.160044]
[1718299923513,0.001,66648.0,66647.0,0.01]
[1718299923715,0.001,66648.0,66647.0,0.160044]
[1718299924327,0.001,66648.0,66647.0,0.01]
[1718299924529,0.001,66648.0,66647.0,0.163044]
[1718299924766,0.1387,66660.0,66648.0,0.150041]